bitfinex-derivatives/quotes_ETHF0:USTF0_20250403
["timestamp","ask_amount","ask_price","bid_price","bid_amount"]
[1743713931820,4.31919,1800.5,1800.4,2.20794843]
[1743713932116,4.31919,1800.5,1800.4,1.96584843]
[1743713933517,4.31919,1800.5,1800.4,1.2757]
[1743713939524,4.31919,1800.5,1800.4,0.6866]
[1743713943420,4.31919,1800.5,1800.3,40.8]
[1743713943421,1.11139,1800.4,1800.3,40.8]
[1743713943616,2.61329,1800.4,1800.3,40.8]
[1743713943927,2.61329,1800.4,1800.3,41.48882031]
[1743713944424,2.61329,1800.4,1800.3,42.04524669]
[1743713944626,2.61329,1800.4,1800.3,41.48882031]
[1743713944822,1.11139,1800.4,1800.3,42.04524634]
[1743713945028,1.11139,1800.4,1800.3,42.63424634]
[1743713945226,4.31919,1800.4,1800.3,42.63425004]
[1743713945419,1.11139,1800.4,1800.3,42.63425004]
[1743713945928,4.31919,1800.4,1800.3,42.07782031]
[1743713946328,4.31919,1800.4,1800.3,41.48882031]
[1743713947230,4.31919,1800.4,1800.3,42.04541618]
[1743713947627,4.31919,1800.4,1800.3,41.48882031]
[1743713948930,5.78099,1800.4,1800.3,41.48882031]
[1743713949226,5.78099,1800.4,1800.3,3.1e-07]
[1743713949622,1.11158,1800.1,1800.0,0.00833633]
[1743713949824,4.31938,1800.1,1800.0,0.00833633]
[1743713950230,4.31938,1800.1,1800.0,40.80833633]
[1743713950537,5.78118,1800.1,1800.0,40.80833633]
[1743713952134,9.53218,1800.1,1800.0,0.00833633]
[1743713952340,9.53218,1800.1,1800.0,6.33e-06]
[1743713955238,12.03218,1800.1,1800.0,6.33e-06]
[1743713956640,1.1122,1799.1,1799.0,0.2424]
[1743713956843,1.1122,1799.1,1799.0,42.07335783]
[1743713957041,1.1122,1799.1,1799.0,44.57335783]
[1743713957238,1.1122,1799.1,1799.0,44.09950846]
[1743713957743,1.1122,1799.1,1799.0,43.5424]
[1743713957944,1.1122,1799.1,1799.0,43.3]
[1743713958748,4.32,1799.1,1799.0,43.3]
[1743713959547,4.32,1799.1,1799.0,40.8]
[1743713960143,5.0818,1799.1,1799.0,40.8]
[1743713960664,6.486,1799.1,1799.0,40.8]
[1743713963155,1.11226,1799.0,1798.9,0.00833633]
[1743713963347,2.62536,1799.0,1798.9,0.00833633]
[1743713963958,2.62536,1799.0,1798.9,6.33e-06]
[1743713966858,2.62536,1799.0,1798.9,40.80000633]
[1743713970761,5.83316,1799.0,1798.9,40.80000633]
[1743713973262,5.83316,1799.0,1798.9,41.53250633]
[1743713975167,2.62536,1799.0,1798.9,41.53250633]
[1743713975364,5.83316,1799.0,1798.9,41.53250633]
[1743713980366,1.11226,1799.0,1798.9,44.03250633]
[1743713980864,1.11226,1799.0,1798.9,44.58985989]
[1743713981167,1.11224,1799.1,1798.9,45.18104374]
[1743713981468,1.11224,1799.1,1799.0,0.8344]
[1743713981963,1.11224,1799.1,1799.0,5.00425619]
[1743713982368,1.11224,1799.1,1799.0,5.47871555]
[1743713982767,1.12052633,1799.2,1799.1,1.1122]
[1743713983069,1.12052633,1799.2,1799.1,2.73545555]
[1743713983270,1.12052633,1799.2,1799.1,6.12792594]
[1743713983672,0.00833633,1799.2,1799.1,6.12792594]
[1743713984468,1e-08,1799.2,1799.1,6.88710793]
[1743713985561,1.11213001,1799.2,1799.1,5.23545555]
[1743713985766,1.11213001,1799.2,1799.1,6.12756907]
[1743713986367,1e-08,1799.2,1799.1,6.12759339]
[1743713987271,1e-08,1799.2,1799.1,6.12732623]
[1743713987670,1e-08,1799.2,1799.1,6.88588332]
[1743713990964,1e-08,1799.2,1799.1,6.88095686]
[1743713991767,1e-08,1799.2,1799.1,12.85095686]
[1743713992979,1e-08,1799.2,1799.1,12.84947163]
[1743713994082,1e-08,1799.2,1799.1,13.9054]
[1743713995079,1e-08,1799.2,1799.1,16.58144702]
[1743713998680,1e-08,1799.2,1799.1,16.5820605]
[1743714001882,1e-08,1799.2,1799.1,16.58143122]
[1743714003785,1e-08,1799.2,1799.1,16.58151635]
[1743714004381,0.693,1799.7,1799.4,1.11201]
[1743714004589,0.693,1799.7,1799.6,1.11189]
[1743714004774,0.693,1799.7,1799.6,2.14115099]
[1743714005086,0.693,1799.7,1799.6,45.44115099]
[1743714005487,1.11169,1800.0,1799.6,45.44115099]
[1743714005488,1.11169,1800.0,1799.9,1.1117]
[1743714006380,1.11996633,1800.1,1800.0,1.11164]
[1743714006789,1.11164,1800.0,1799.9,1.11997633]
[1743714007185,4.31944,1800.0,1799.9,0.00833633]
[1743714007395,1.11182,1799.7,1799.6,40.8]
[1743714007586,4.31962,1799.7,1799.6,40.8]
[1743714008481,1.11182,1799.7,1799.6,40.8]
[1743714008684,1.84162,1799.7,1799.6,41.91189]
[1743714009305,5.04942,1799.7,1799.6,40.8]
[1743714009886,6.56782,1799.7,1799.6,40.8]
[1743714010492,7.32032,1799.7,1799.6,40.8]
[1743714010888,9.82032,1799.7,1799.6,40.8]
[1743714012397,7.32032,1799.7,1799.6,41.91189]
[1743714012697,7.32032,1799.7,1799.6,41.35732965]
[1743714012893,6.2085,1799.7,1799.6,42.46921965]
[1743714013192,3.0007,1799.7,1799.6,42.46921965]
[1743714013790,4.11252,1799.7,1799.6,42.46921965]
[1743714014899,4.11252,1799.7,1799.6,41.35732965]
[1743714015390,4.11252,1799.7,1799.6,41.35753664]
[1743714015995,9.82032,1799.7,1799.6,40.8]
[1743714016299,1.11189,1799.6,1799.5,0.00556396]
[1743714016490,2.54199,1799.6,1799.5,0.00556396]
[1743714016800,2.54199,1799.6,1799.5,40.80556396]
[1743714018091,1.4301,1799.6,1799.5,42.4752869]
[1743714018500,2.54199,1799.6,1799.5,42.4752869]
[1743714018798,2.54199,1799.6,1799.5,40.80556396]
[1743714022400,1.4301,1799.6,1799.5,46.34106383]
[1743714022697,1.4301,1799.6,1799.5,49.23801625]
[1743714022894,1.4301,1799.6,1799.5,49.2374829]
[1743714023095,1.4301,1799.6,1799.5,46.7374829]
[1743714024311,0.00833633,1800.1,1800.0,1.11164]
[1743714024598,1.82496633,1800.1,1800.0,1.11164]
[1743714024901,1.11169,1800.0,1799.9,1.11165]
[1743714025099,1.11169,1800.0,1799.9,1.66879637]
[1743714025298,1.11169,1800.0,1799.9,1.66870205]
[1743714025498,1.1117,1799.9,1799.8,1.11171]
[1743714025693,2.6168,1799.9,1799.8,1.66881017]
[1743714029394,1.5051,1799.9,1799.8,1.66881017]
[1743714030104,2.6168,1799.9,1799.8,1.66881017]
[1743714030709,2.6168,1799.9,1799.8,1.66856755]
[1743714031004,1.5051,1799.9,1799.8,1.66856755]
[1743714031499,1.5051,1799.9,1799.8,3.80766755]
[1743714031704,1.5051,1799.9,1799.8,5.1722242]
[1743714032007,1.5051,1799.9,1799.8,5.17221154]
[1743714032202,5.8246,1799.9,1799.8,1.66861755]
[1743714032706,5.8246,1799.9,1799.8,1.11176]
[1743714035003,7.49226,1799.9,1799.5,47.49567396]
[1743714035309,1.11189,1799.6,1799.5,40.80556396]
[1743714035807,3.28129,1799.6,1799.5,40.80556396]
[1743714037601,3.28129,1799.6,1799.5,0.00556396]
[1743714037801,1.11207,1799.3,1799.2,1.1121]
[1743714038101,1.11207,1799.3,1799.2,41.9121]
[1743714038304,3.31466,1799.4,1799.3,1.11207]
[1743714038500,1.86821,1799.4,1799.3,1.11207]
[1743714039096,5.07601,1799.4,1799.3,1.11207]
[1743714039301,1.11207,1799.3,1799.2,43.36838]
[1743714040810,1.11207,1799.3,1799.2,41.91208]
[1743714041307,5.07605,1799.4,1799.3,1.11207]
[1743714042412,1.86825,1799.4,1799.3,1.11207]
[1743714042710,1.11207,1799.3,1799.2,40.8]
[1743714043114,2.78063,1799.1,1798.5,2.78142]
[1743714043318,1.11238,1798.9,1798.8,1.11237]
[1743714043809,1.1124,1798.8,1798.7,1.11239]
[1743714044214,1.1124,1798.8,1798.7,41.91239]
[1743714044417,1.8551,1798.8,1798.7,41.91239]
[1743714047411,1.8551,1798.8,1798.7,40.8]
[1743714049408,4.3551,1798.8,1798.7,40.8]
[1743714049709,5.8521,1798.8,1798.7,40.8]
[1743714050019,1.11263,1798.4,1798.3,1.11268]
[1743714050215,1.1127,1798.3,1798.2,1.11271]
[1743714050419,3.3213,1798.3,1798.2,1.11271]
[1743714050620,3.3213,1798.3,1798.0,4.7113]
[1743714050621,1.11278,1798.2,1798.1,1.1128]
[1743714050817,2.60978,1798.2,1798.1,41.9128]
[1743714051420,5.81758,1798.2,1798.1,41.9128]
[1743714054017,5.81758,1798.2,1798.1,40.8]
[1743714054210,6.55198,1798.2,1798.1,40.8]
[1743714054615,1.11267,1798.4,1798.2,1.11272]
[1743714054814,1.11267,1798.4,1798.1,40.8]
[1743714054815,1.11274,1798.3,1798.1,41.9128]
[1743714055011,1.5054,1798.2,1798.1,41.9128]
[1743714057127,1.5054,1798.2,1798.1,43.3161]
[1743714057927,2.61815,1798.2,1798.1,43.3161]
[1743714059718,3.2078,1798.4,1798.3,1.11269]
[1743714059921,3.2078,1798.4,1798.1,47.48522]
[1743714059922,1.5037,1798.7,1798.6,1.1125]
[1743714060117,1.11257,1798.6,1798.5,1.11253]
[1743714060327,1.5037,1798.7,1798.4,2.59838]
[1743714060328,1.11257,1798.5,1798.4,2.59838]
[1743714060620,2.59887,1798.5,1798.4,2.59838]
[1743714061223,1.4863,1798.5,1798.4,2.59838]
[1743714061426,1.11248,1798.7,1798.6,1.11244]
[1743714061628,2.59878,1798.7,1798.6,1.11244]
[1743714061845,1.4863,1798.7,1798.6,1.11244]
[1743714062136,3.2078,1798.8,1798.7,1.11244]
[1743714062429,3.32977,1798.9,1798.8,1.11238]
[1743714064430,6.53757,1798.9,1798.8,1.11238]
[1743714067541,10.70614,1798.9,1798.4,4.4695]
[1743714067730,10.70614,1798.9,1798.6,1.1125]
[1743714067731,3.2078,1798.7,1798.6,1.1125]
[1743714067935,4.32029,1798.7,1798.6,1.1125]
[1743714068236,5.69649,1798.7,1798.6,1.1125]
[1743714068433,2.48869,1798.7,1798.6,1.1125]
[1743714068639,1.11255,1798.6,1798.5,1.1125]
[1743714068834,2.48875,1798.6,1798.5,1.1125]
[1743714069929,1.3762,1798.6,1798.5,1.1125]
[1743714070131,4.32024,1798.7,1798.6,1.1125]
[1743714070336,1.11244,1798.7,1798.6,1.1125]
[1743714070735,2.54284,1798.7,1798.6,1.1125]
[1743714070935,2.54284,1798.7,1798.6,2.5444]
[1743714072337,0.00833633,1799.0,1798.9,1.11232]
[1743714072736,0.00833633,1799.0,1798.9,2.51162]
[1743714073630,1.12059633,1799.0,1798.9,2.51162]
[1743714073836,0.00833633,1799.0,1798.9,2.51162]
[1743714074038,1.42193633,1799.0,1798.9,2.51162]
[1743714074233,2.53419633,1799.0,1798.9,1.11232]
[1743714074433,1.11232,1798.9,1798.8,1.80223]
[1743714074634,2.52592,1798.9,1798.8,1.80223]
[1743714074834,3.23242,1798.9,1798.8,1.80223]
[1743714077537,5.3279,1798.9,1798.3,3.2078]
[1743714077740,1.11263,1798.5,1798.4,1.8572]
[1743714078640,1.4539,1798.5,1798.4,1.8572]
[1743714079340,1.4539,1798.5,1798.4,3.3672]
[1743714079843,1.11255,1798.6,1798.5,1.11257]
[1743714081037,2.56645,1798.6,1798.5,1.11257]
[1743714082543,1.11255,1798.6,1798.5,1.11257]
[1743714082742,2.81458106,1798.9,1798.8,1.11233]
[1743714083044,2.41976212,1798.9,1798.8,1.11233]
[1743714083244,2.41976212,1798.9,1798.8,41.91233]
[1743714083443,2.41976212,1798.9,1798.8,43.33633]
[1743714083646,2.59241633,1799.0,1798.9,1.11232]
[1743714083853,2.59241633,1799.0,1798.9,2.53632]
[1743714084144,2.59241633,1799.0,1798.9,1.11232]
[1743714084352,2.59241633,1799.0,1798.9,41.91232]
[1743714086444,2.59241633,1799.0,1798.9,40.8]
[1743714087148,3.29071633,1799.0,1798.9,40.8]
[1743714089743,3.29071633,1799.0,1798.9,41.91232]
[1743714090047,3.29069633,1799.0,1798.9,41.91232]
[1743714090242,1.48013633,1799.0,1798.9,41.91232]
[1743714091043,2.59239633,1799.0,1798.9,41.91232]
[1743714093643,2.59239633,1799.0,1798.9,40.8]
[1743714093951,1.11244,1798.7,1798.6,1.11245]
[1743714094151,4.32024,1798.7,1798.6,1.6694429]
[1743714094355,1.1125,1798.6,1798.5,1.11252]
[1743714094657,2.5393,1798.6,1798.5,1.6695358]
[1743714094846,2.5393,1798.6,1798.5,42.4695358]
[1743714095445,2.5393,1798.6,1798.5,42.46946749]
[1743714097251,2.5393,1798.6,1798.5,41.91252]
[1743714099257,2.5393,1798.6,1798.5,40.8]
[1743714100251,1.11275,1798.2,1798.1,1.11278]
[1743714100762,1.11275,1798.2,1798.1,41.91278]
[1743714100949,2.52885,1798.2,1798.1,41.91278]
[1743714102062,2.52885,1798.2,1798.1,40.8]
[1743714102254,3.24825,1798.2,1798.1,40.8]
[1743714102558,3.24825,1798.2,1798.1,41.91281]
[1743714102758,3.24825,1798.2,1798.1,40.8]
[1743714107062,3.24825,1798.2,1798.1,41.91281]
[1743714107263,3.24825,1798.2,1798.1,40.8]
[1743714112461,9.48025,1798.2,1798.1,40.8]
[1743714112667,1.11306,1797.7,1797.6,4.32088]
[1743714113367,1.11306,1797.7,1797.6,45.12088]
[1743714113578,2.50956,1797.7,1797.6,45.12088]
[1743714113964,1.3965,1797.7,1797.6,45.12088]
[1743714114159,2.62084633,1797.8,1797.7,1.11306]
[1743714114160,1.12133633,1797.8,1797.7,1.11306]
[1743714114377,1.12133633,1797.8,1797.7,2.57136]
[1743714114566,2.54653633,1797.8,1797.7,2.57136]
[1743714114869,1.43353633,1797.8,1797.6,45.12088]
[1743714115066,5.74606,1797.7,1797.6,40.8]
[1743714115260,6.47386,1797.7,1797.6,40.8]
[1743714115466,3.26606,1797.7,1797.6,40.8]
[1743714115771,1.11331,1797.3,1797.2,3.86102759]
[1743714116072,1.11331,1797.3,1797.2,43.54765759]
[1743714116267,4.32111,1797.3,1797.2,43.54765759]
[1743714116570,4.32111,1797.3,1797.2,42.84385759]
[1743714116770,5.07071,1797.3,1797.2,42.84385759]
[1743714116973,6.49591,1797.3,1797.2,42.84385759]
[1743714117772,10.22791,1797.3,1797.2,42.84385759]
[1743714118469,12.72791,1797.3,1797.2,2.04385759]
[1743714119972,10.22791,1797.3,1797.2,2.04385759]
[1743714120272,3.28811,1797.3,1797.2,2.04385759]
[1743714120575,1.4252,1797.3,1797.2,3.15722759]
[1743714120770,4.8453,1797.4,1797.2,3.15722759]
[1743714120974,3.2078,1797.5,1797.2,3.15722759]
[1743714120975,3.2078,1797.5,1797.3,2.61331]
[1743714121175,2.79085633,1797.8,1797.3,2.61331]
[1743714121176,1.12138633,1797.8,1797.4,2.61325]
[1743714121475,1.11306,1797.7,1797.6,1.11308]
[1743714121676,1.11306,1797.7,1797.6,2.61308]
[1743714122675,1.11306,1797.7,1797.6,1.5]
[1743714123178,1.11306,1797.7,1797.6,2.61312]
[1743714124272,1.11306,1797.7,1797.6,1.5]
[1743714124475,0.00833633,1797.8,1797.7,1.11306]
[1743714124672,1.12133633,1797.8,1797.7,1.11306]
[1743714124880,1.11306,1797.7,1797.6,4.84607]
[1743714125070,2.55126,1797.7,1797.6,4.84607]
[1743714125268,0.00833633,1797.8,1797.7,1.11306]
[1743714125477,1.12133633,1797.8,1797.7,2.52266]
[1743714125777,0.00833633,1797.8,1797.7,2.52266]
[1743714126172,1.44653633,1797.8,1797.7,2.52266]
[1743714126679,2.55953633,1797.8,1797.7,2.52266]
[1743714127777,1.44653633,1797.8,1797.7,2.52266]
[1743714128074,0.00833633,1797.8,1797.7,2.52266]
[1743714128480,0.00833633,1797.8,1797.7,5.02266]
[1743714128674,3.2078,1797.9,1797.8,1.113]
[1743714128880,0.7048,1798.2,1798.1,1.11281]
[1743714128881,3.2078,1798.2,1798.1,1.11281]
[1743714129282,1.4608,1798.5,1798.4,1.11263]
[1743714129675,2.57337,1798.5,1798.4,1.11263]
[1743714129876,1.4608,1798.5,1798.4,1.11263]
[1743714130188,0.00833633,1798.6,1798.5,1.11257]
[1743714130486,0.00833633,1798.6,1798.5,2.53007]
[1743714130880,1e-08,1798.6,1798.5,5.03007]
[1743714131183,1e-08,1798.6,1798.5,46.38571894]
[1743714131382,1e-08,1798.6,1798.5,46.85813723]
[1743714132380,1e-08,1798.6,1798.5,47.7456033]
[1743714133078,1e-08,1798.6,1798.5,54.4706408]
[1743714133281,1.4274,1799.4,1799.3,1.11201]
[1743714133479,3.2078,1799.8,1799.2,1.4539]
[1743714133686,1.11196,1799.5,1799.2,1.4539]
[1743714133883,5.98723,1799.8,1799.3,1.11207]
[1743714133884,1.4274,1799.4,1799.3,1.11207]
[1743714134384,1.4274,1799.4,1799.3,4.31987]
[1743714135780,1.11207,1799.3,1799.2,0.00833633]
[1743714136174,4.32807,1799.3,1799.2,0.00833633]
[1743714136380,5.79277,1799.3,1799.2,0.00833633]
[1743714137792,3.29277,1799.3,1799.2,0.00833633]
[1743714142783,1.4647,1799.3,1799.2,1.12046633]
[1743714143086,2.60048633,1799.5,1799.4,1.11201]
[1743714143982,1.11201,1799.4,1799.3,4.31982]
[1743714144182,1.4802,1799.4,1799.3,4.31982]
[1743714144376,1.4802,1799.4,1799.2,0.00833633]
[1743714144377,4.688,1799.4,1799.2,0.00833633]
[1743714144582,2.55957,1799.3,1799.2,0.00833633]
[1743714144783,4.03977,1799.3,1799.2,0.00833633]
[1743714149590,4.03977,1799.3,1799.2,1.12046633]
[1743714149986,3.28537,1799.3,1799.2,1.12046633]
[1743714150495,3.28537,1799.3,1799.2,0.00833633]
[1743714154994,3.28537,1799.3,1799.2,1.12046633]
[1743714155895,6.49317,1799.3,1799.2,0.00833633]
[1743714156196,13.44164,1799.3,1798.6,5.07755]
[1743714156393,1.11244,1798.7,1798.6,5.07755]
[1743714156601,1.11244,1798.7,1798.6,0.7573]
[1743714156906,1.1125,1798.6,1798.5,43.31151]
[1743714157091,1.1125,1798.6,1798.5,41.91251]
[1743714158399,1.1125,1798.6,1798.5,42.94482703]
[1743714158803,1.1125,1798.6,1798.5,43.83691775]
[1743714159189,1.1125,1798.6,1798.5,42.94482703]
[1743714159396,1.11249,1798.7,1798.6,1.11245]
[1743714159604,2.62419,1798.7,1798.6,2.14476703]
[1743714159795,2.62419,1798.7,1798.6,1.67014594]
[1743714160302,1.11236,1798.9,1798.8,1.11231]
[1743714161699,1.11236,1798.9,1798.8,1.67019784]
[1743714162102,1.11236,1798.9,1798.8,1.67019007]
[1743714162296,2.78035,1799.2,1798.8,1.67019007]
[1743714162502,0.00833633,1799.5,1799.4,1.11201]
[1743714162907,1.12028633,1799.5,1799.4,2.51121]
[1743714163402,1.12028633,1799.5,1799.4,43.31121]
[1743714163605,1.12028633,1799.5,1799.4,43.8684581]
[1743714163904,1.12028633,1799.5,1799.4,43.86843443]
[1743714164104,1.12028633,1799.5,1799.4,43.31121]
[1743714164300,6.24933633,1799.5,1798.9,1.86377]
[1743714164505,1.11226,1799.0,1798.9,1.11227]
[1743714164811,1.11226,1799.0,1798.9,42.46980607]
[1743714165006,1.11232,1798.9,1798.8,3.2078]
[1743714165213,1.11238,1798.8,1798.7,1.11242]
[1743714165504,1.11237,1798.9,1798.8,1.11234]
[1743714165698,2.54207,1798.9,1798.8,1.67028725]
[1743714166302,2.54207,1798.9,1798.8,0.55794725]
[1743714166507,1.11238,1798.8,1798.7,42.2525]
[1743714166809,2.56178,1798.8,1798.7,42.81044182]
[1743714167510,2.56178,1798.8,1798.7,43.92284182]
[1743714167700,2.56178,1798.8,1798.7,42.47034691]
[1743714168714,1.4494,1798.8,1798.7,42.47034691]
[1743714169212,2.56178,1798.8,1798.7,42.47034691]
[1743714169717,2.56178,1798.8,1798.7,41.9124]
[1743714170808,1.4494,1798.8,1798.7,41.9124]
[1743714171010,1.11223,1799.1,1798.7,43.82380263]
[1743714171217,2.48571,1799.1,1798.8,6.90801003]
[1743714171403,1.11232,1799.0,1798.9,1.11231]
[1743714171707,2.48582,1799.0,1798.9,1.11231]
[1743714172310,2.48582,1799.0,1798.9,1.67001153]
[1743714172513,1.3735,1799.0,1798.9,1.67001153]
[1743714172722,2.48576,1799.0,1798.9,1.67001153]
[1743714172921,5.57218,1799.2,1799.1,1.1122]
[1743714173217,3.25478,1799.2,1799.1,1.1122]
[1743714174015,1.11224,1799.1,1799.0,1.1122]
[1743714174321,2.52684,1799.1,1799.0,1.1122]
[1743714174919,2.52684,1799.1,1799.0,1.66993303]
[1743714175212,9.47896,1799.3,1799.0,1.1122]
[1743714175419,1.82080633,1799.5,1799.4,1.11201]
[1743714175615,3.23540633,1799.5,1799.4,1.11201]
[1743714181019,2.53490633,1799.5,1799.4,1.87291]
[1743714182918,0.00833633,1799.5,1799.4,5.08071]
[1743714183220,0.00833633,1799.5,1799.4,7.15564522]
[1743714184011,0.00833633,1799.5,1799.4,7.15569013]
[1743714186119,0.00833633,1799.5,1799.4,7.15507073]
[1743714187817,0.00833633,1799.5,1799.4,6.59911]
[1743714188018,0.00833633,1799.5,1799.4,7.15490133]
[1743714188624,0.00833633,1799.5,1799.4,9.65490133]
[1743714189324,0.00833633,1799.5,1799.4,50.45490133]
[1743714191528,0.00833633,1799.5,1799.4,49.89911]
[1743714193728,1e-08,1799.5,1799.4,50.45485431]
[1743714193927,1e-08,1799.5,1799.4,51.80320508]
[1743714195527,1e-08,1799.5,1799.4,51.80238641]
[1743714195832,1e-08,1799.5,1799.4,51.80215902]
[1743714196035,1e-08,1799.5,1799.4,51.80215941]
[1743714196225,1e-08,1799.5,1799.4,49.89911]
[1743714197337,1e-08,1799.5,1799.4,50.35827589]
[1743714197635,1e-08,1799.5,1799.4,51.80257089]
[1743714199336,1.4329,1799.8,1799.7,1.11182]
[1743714199526,1.4329,1799.8,1799.7,8.60309473]
[1743714200132,1.4329,1799.8,1799.7,49.40309473]
[1743714200332,1.4329,1799.8,1799.7,50.13119473]
[1743714201331,2.54466,1799.8,1799.7,45.67509473]
[1743714201530,3.24716,1799.8,1799.7,45.67583644]
[1743714201729,3.24716,1799.8,1799.7,45.11962]
[1743714201933,2.1354,1799.8,1799.7,45.67599311]
[1743714203435,2.1354,1799.8,1799.7,45.67641807]
[1743714205733,2.1354,1799.8,1799.7,46.5676189]
[1743714205929,2.1354,1799.8,1799.7,46.56761339]
[1743714206127,1.4329,1799.8,1799.7,47.30791339]
[1743714206329,1.4329,1799.8,1799.7,49.24522998]
[1743714206939,1.4329,1799.8,1799.7,48.78471339]
[1743714207333,1.4329,1799.8,1799.7,49.24530511]
[1743714207740,2.54466,1799.8,1799.7,41.35679807]
[1743714208045,2.54466,1799.8,1799.7,42.46908526]
[1743714208239,2.54466,1799.8,1799.7,41.91182]
[1743714210240,2.54466,1799.8,1799.7,42.46936873]
[1743714211143,2.54466,1799.8,1799.7,42.46938632]
[1743714214155,2.54466,1799.8,1799.7,41.35792126]
[1743714214447,2.54466,1799.8,1799.7,42.46974126]
[1743714217941,1.4329,1799.8,1799.7,42.46974126]
[1743714218141,1.4329,1799.8,1799.7,43.36226844]
[1743714218543,2.54466,1799.8,1799.7,41.35792126]
[1743714218848,1.11182,1799.7,1799.6,0.00833633]
[1743714219146,1.11207,1799.3,1799.2,1.11211]
[1743714219348,1.11207,1799.3,1799.2,1.67021108]
[1743714219643,1.11207,1799.3,1799.2,42.47021108]
[1743714220046,1.85127,1799.3,1799.2,42.47021108]
[1743714220839,1.85127,1799.3,1799.2,42.47003649]
[1743714221048,1.85127,1799.3,1799.2,41.35792649]
[1743714221344,1.85127,1799.3,1799.2,40.8]
[1743714221843,4.35127,1799.3,1799.2,40.8]
[1743714222241,5.75717,1799.3,1799.2,40.8]
[1743714232156,3.25717,1799.3,1799.2,40.8]
[1743714234857,6.98517,1799.3,1799.2,40.8]
[1743714235158,6.98517,1799.3,1799.1,0.00833632]
[1743714235159,1.11213,1799.2,1799.1,0.00833632]
[1743714235355,2.52023,1799.2,1799.1,0.00833632]
[1743714235558,5.02023,1799.2,1799.1,0.00833632]
[1743714248066,11.0839972,1799.2,1799.1,6.32e-06]
[1743714248377,1.1125,1798.6,1798.5,0.6876]
[1743714248666,1.1125,1798.6,1798.5,2.2018]
[1743714249174,2.5946,1798.6,1798.5,43.0018]
[1743714251874,2.5946,1798.6,1798.5,44.11437]
[1743714252174,2.5946,1798.6,1798.5,43.0018]
[1743714252477,2.5946,1798.6,1798.5,44.11437]
[1743714252874,2.5946,1798.6,1798.5,43.0018]
[1743714253066,2.5946,1798.6,1798.5,44.11437]
[1743714253270,2.5946,1798.6,1798.5,43.0018]
[1743714253761,2.5946,1798.6,1798.5,40.8]
[1743714253967,1.11263,1798.4,1798.3,0.737]
[1743714254473,1.11263,1798.4,1798.3,41.537]
[1743714254774,2.49803,1798.4,1798.3,42.9377]
[1743714255480,2.49803,1798.4,1798.3,44.05039]
[1743714255676,2.49803,1798.4,1798.3,42.9377]
[1743714256370,2.49803,1798.4,1798.3,44.05039]
[1743714256575,2.49803,1798.4,1798.3,42.9377]
[1743714256984,2.49803,1798.4,1798.3,44.05039]
[1743714257187,2.49803,1798.4,1798.3,42.9377]
[1743714258382,2.49803,1798.4,1798.3,44.05039]
[1743714259188,1.11262,1798.5,1798.4,1.11257]
[1743714259383,1.11262,1798.5,1798.4,2.63677]
[1743714260486,1.11262,1798.5,1798.4,43.43677]
[1743714260886,1.11256,1798.6,1798.5,1.1125]
[1743714261079,1.11256,1798.6,1798.5,2.5696]
[1743714262381,0.00833633,1798.7,1798.6,1.1125]
[1743714262582,0.00833633,1798.7,1798.6,6.5072]
[1743714262781,0.00833633,1798.7,1798.6,9.56439075]
[1743714262982,0.00833633,1798.7,1798.6,50.36439075]
[1743714263183,0.00833633,1798.7,1798.6,51.71537898]
[1743714263480,0.00833633,1798.7,1798.6,51.71539907]
[1743714263789,0.00833633,1798.7,1798.6,51.71539723]
[1743714264289,0.00833633,1798.7,1798.6,51.71547081]
[1743714264989,0.00833633,1798.7,1798.6,51.25572589]
[1743714265187,0.00833633,1798.7,1798.6,51.71557686]
[1743714265991,7.08017,1799.2,1799.1,1.1122]
[1743714266290,1.11217,1799.2,1799.1,1.1122]
[1743714266681,1.11217,1799.2,1799.1,2.5434]
[1743714268487,2.54505633,1799.3,1799.2,1.11213]
[1743714268693,2.54505633,1799.3,1799.2,3.28493]
[1743714269289,2.54505633,1799.3,1799.2,44.08493]
[1743714269485,0.00833633,1799.3,1799.2,44.08493]
[1743714269688,5.968,1799.6,1799.5,1.11195]
[1743714269884,2.59568,1799.8,1799.7,1.11182]
[1743714270087,2.59566,1799.8,1799.7,1.11182]
[1743714270691,1.11182,1799.7,1799.6,3.28465]
[1743714270893,1.11182,1799.7,1799.6,2.1728]
[1743714271286,1.11182,1799.7,1799.6,3.28469]
[1743714272698,1.11182,1799.7,1799.6,2.1728]
[1743714273091,1.11189,1799.6,1799.5,4.31971]
[1743714273397,2.54189,1799.6,1799.5,4.31971]
[1743714273598,2.54189,1799.6,1799.5,5.72321]
[1743714276796,1.11207,1799.4,1799.3,4.31986]
[1743714276991,1.11207,1799.4,1799.3,1.11206]
[1743714277292,1.1122,1799.2,1799.0,3.21613633]
[1743714277493,1.4402,1799.1,1799.0,5.08519633]
[1743714277698,2.5524,1799.1,1799.0,5.08519633]
[1743714278006,2.5524,1799.1,1799.0,45.88519633]
[1743714278697,3.3124,1799.1,1799.0,45.88519633]
[1743714279898,3.3124,1799.1,1799.0,45.12839633]
[1743714280306,2.2002,1799.1,1799.0,45.12839633]
[1743714280810,3.3124,1799.1,1799.0,45.12839633]
[1743714282206,2.2002,1799.1,1799.0,45.12839633]
[1743714282704,2.2002,1799.1,1799.0,41.92059633]
[1743714282900,2.2002,1799.1,1799.0,45.12839633]
[1743714283399,2.2002,1799.1,1799.0,46.58639633]
[1743714284005,1.11195,1799.5,1799.4,1.11193]
[1743714284698,1.11195,1799.5,1799.4,41.91193]
[1743714285401,2.61175,1799.5,1799.4,41.91193]
[1743714285798,2.61175,1799.5,1799.4,41.91201]
[1743714287405,2.61175,1799.5,1799.4,40.8]
[1743714287602,1.11213,1799.2,1799.1,5.07545]
[1743714287804,1.11213,1799.2,1799.1,4.31995]
[1743714288003,1.11213,1799.2,1799.1,45.11995]